[Event "Croatian Championship 2022"]
[Site "Split"]
[Date "2022.12.03"]
[Round "5.1"]
[White "Kozul, Zdenko"]
[Black "Martinovic, Sasa"]
[Result "1/2-1/2"]
[ECO "D10"]
[WhiteElo "2539"]
[BlackElo "2557"]
[Annotator "TA"]
[PlyCount "121"]
[EventDate "2022.11.29"]
[EventType "tourn"]
[EventCountry "CRO"]
[SourceTitle "playchess.com"]
[Source "ChessBase"]
[SourceQuality "1"]
[TimeControl "40/5400+30:1800+30"]

{[%evp 12,121,12,7,19,20,28,8,9,0,10,9,9,5,6,0,9,7,4,3,4,9,19,13,28,25,29,27,31,6,15,14,10,10,25,25,28,28,60,23,32,35,57,50,58,58,121,110,118,52,121,58,114,35,35,35,36,0,0,0,31,27,27,30,37,52,29,50,33,68,121,125,136,153,115,115,374,273,263,141,374,369,278,130,536,511,1178,1285,1276,1275,1246,1208,1116,1048,765,560,450,8,8,0,0,0,0,0,0,0,0,0,0,0,0,0]} 1. d4 {[%emt 0:00:07] ChessBase II} d5 {[%emt 0:00:03]} 2. c4 {[%emt 0:00:20]} c6 {[%emt 0:00:04]} 3. Nc3 {[%emt 0:01:09]} Nf6 {[%emt 0:00:04]} 4. e3 {[%emt 0:00:19]} Bf5 {[%emt 0:00:10]} 5. Qb3 {[%emt 0:05:03]} Qb6 {[%emt 0:00:21]} 6. Qxb6 {[%emt 0:01:02]} axb6 {[%emt 0:00:04]} 7. cxd5 {[%emt 0:00:06]} Nxd5 $1 {[%emt 0:00:37] The main line 7...Nxd5 scores better than 7...cxd5. D10: Slav Defence: 3 cxd5 (without early Nf3) and 3 Nc3.} 8. Nxd5 {[%emt 0:06:19]} cxd5 {[%emt 0:00:04]} 9. Ne2 {[%emt 0:00:51] [#]} Bd3 $146 {[%emt 0:00:10]} ({Predecessor:} 9... Nc6 10. Nc3 e6 11. Bb5 Bb4 12. Bd2 Ra5 13. Be2 Kd7 14. a3 Raa8 15. f3 Bg6 {½-½ (34) Feller,S (2574)-Bailet,P (2501) Brest 2018 EXT 2019 [ChessBase II]}) 10. Nc3 {[%emt 0:00:47][%csl LRd3,LRd5]} Bxf1 {[%emt 0:00:06]} 11. Kxf1 {[%emt 0:00:05]} e6 {[%emt 0:00:08]} 12. Ke2 {[%emt 0:00:36]} Nc6 {[%emt 0:00:19]} 13. Bd2 {[%emt 0:05:25]} h5 {[%emt 0:00:10]} 14. a3 {[%emt 0:02:32]} Kd7 {[%emt 0:02:05]} 15. Kd3 {[%emt 0:00:38]} Be7 {[%emt 0:05:12]} 16. f3 {[%emt 0:02:32]} f5 {[%emt 0:07:48]} 17. h4 {[%emt 0:28:51]} Bf6 {[%emt 0:14:17]} 18. Ne2 {[%emt 0:11:53]} e5 {[%emt 0:07:54]} 19. Bc3 {[%emt 0:00:22]} Rac8 {[%emt 0:13:57]} 20. dxe5 {[%emt 0:03:12]} Nxe5+ {[%emt 0:01:29]} 21. Bxe5 {[%emt 0:02:21]} Bxe5 {[%emt 0:00:04]} 22. Nd4 {[%emt 0:05:39]} Bxd4 {[%emt 0:14:39]} (22... f4 {seems wilder.} 23. exf4 Bxf4 24. Rae1 Rhe8) 23. exd4 $11 {[%emt 0:00:53][%mdl 4096] Endgame KRR-KRR} Rhe8 {[%emt 0:01:09]} 24. Rae1 {[%emt 0:01:41]} Kd6 {[%emt 0:05:10]} 25. a4 {[%emt 0:06:31]} Ra8 {[%emt 0:08:04]} (25... g6 {simplifies} 26. Rxe8 Rxe8 27. g3 Ra8) 26. b3 {[%emt 0:00:20]} (26. Rxe8 {simplifies} Rxe8 27. g3 Kc6 28. Rg1) 26... Rac8 {[%emt 0:00:03]} 27. Rhg1 {[%emt 0:03:32]} g6 {[%emt 0:01:24]} 28. g3 {[%emt 0:03:16]} Re6 {[%emt 0:06:57]} (28... Rb8 $14) 29. Rxe6+ $16 {[%emt 0:00:21]} Kxe6 {[%emt 0:00:03] KR-KR} 30. Re1+ {[%emt 0:00:19]} (30. f4 $16) 30... Kd6 {[%emt 0:00:04]} (30... Kd7 $1 $14) 31. Kd2 {[%emt 0:02:54]} ({White should try} 31. f4 $1 $16) 31... Kd7 {[%emt 0:00:29]} (31... Ra8 $14) 32. Re2 {[%emt 0:01:31]} (32. f4 $16) 32... Kd6 $14 {[%emt 0:08:46]} 33. Re5 {[%emt 0:00:06]} Ra8 {[%emt 0:00:51][%cal Ob6b5]} 34. Ke3 {[%emt 0:02:08]} b5 $1 {[%emt 0:02:03]} 35. axb5 {[%emt 0:00:05] Black must now prevent Kf4.} Ra5 {[%emt 0:00:08]} 36. Re8 {[%emt 0:00:29] Threatens to win with Rg8.} Rxb5 {[%emt 0:00:17]} 37. Rg8 {[%emt 0:00:08]} Rxb3+ {[%emt 0:00:06]} 38. Kf4 {[%emt 0:00:07]} b5 {[%emt 0:01:41]} 39. Rxg6+ {[%emt 0:00:08]} Kc7 {[%emt 0:01:56]} 40. Rg5 {[%emt 0:00:00]} b4 {[%emt 0:00:00]} ({Black should play} 40... Rd3 $14) 41. Rxf5 $16 {[%emt 0:04:10]} Kc6 {[%emt 0:01:42]} 42. Rxh5 {[%emt 0:03:32]} Rd3 {[%emt 0:00:25]} 43. Rh8 $1 {[%emt 0:00:18]} Kc7 $2 {[%emt 0:02:25][%mdl 8192]} (43... Rxd4+ $16 44. Ke5 Rd2) 44. Ra8 {[%emt 0:02:07] And now h5 would win.} Rxd4+ {[%emt 0:01:53]} 45. Ke3 {[%emt 0:00:56]} (45. Kg5 $1 $18 {h5 is the strong threat.} b3 46. Ra1) 45... Rd1 $2 {[%emt 0:11:30] [#]} (45... Rc4 $16 46. h5 b3) 46. Ra2 $1 $18 {[%emt 0:01:54]} Kd6 {[%emt 0:01:45]} 47. g4 {[%emt 0:06:17]} (47. h5 $18 {and White stays clearly on top.}) 47... Kc5 $2 {[%emt 0:05:38][%mdl 8192]} (47... d4+ $16 {is a better chance.} 48. Kf4 Rh1) 48. Rc2+ {[%emt 0:05:12]} Kb5 {[%emt 0:00:03]} (48... Kd6 $142 49. Rh2 Re1+ 50. Kf4 Re8) 49. Rh2 {[%emt 0:00:31]} b3 {[%emt 0:00:56]} 50. h5 {[%emt 0:00:15][%cal Bh4h5,Bh5h6][%mdl 32]} d4+ {[%emt 0:08:15] [#]} 51. Kf4 $1 {[%emt 0:00:16] Hoping for h6.} ({Not} 51. Ke4 d3 52. Ke3 Kc4 $11) 51... d3 {[%emt 0:01:13]} 52. h6 {[%emt 0:00:15] h7 would kill now.} ({Inferior is} 52. Ke3 Kc4 53. h6 Re1+ 54. Kf4 Re2 $11) 52... Kc4 {[%emt 0:01:06]} 53. h7 {[%emt 0:05:32]} b2 {[%emt 0:00:04]} 54. Rxb2 {[%emt 0:00:05]} (54. h8=R $2 {is the wrong capture.} b1=Q 55. Rc8+ Kd5 56. Rd8+ Kc6 57. Rh6+ Kc7 $19) (54. h8=Q $18 b1=Q 55. Qc8+ Kd4 56. Qd7+ Kc4 57. Qc6+ Kb4 58. Qd6+ Kc3 59. Qc5+ Kb3 60. Qb6+ Kc3 61. Qc7+ Kb3 62. Qb7+ Kc3 63. Qg7+ Kc4 64. Qc7+ Kb3 65. Qb7+ Kc3 66. Qc8+ Kb4 67. Qb8+ Kc3 68. Qe5+ Kb3 69. Qd5+ Kc3 70. Qe5+ Kb3 71. Qd5+ Kc3 72. Qe5+) 54... Rh1 $11 {[%emt 0:00:02] The position is equal.} 55. g5 {[%emt 0:03:58] Threatening mate with g6.} (55. Rb7 {keeps more tension.} d2 56. Rd7 Kc3 57. Ke3) 55... Rxh7 {[%emt 0:01:11]} 56. g6 {[%emt 0:00:06]} Rd7 {[%emt 0:00:37]} 57. Rg2 {[%emt 0:02:35] White wants to mate with g7.} d2 {[%emt 0:00:24]} 58. Rxd2 {[%emt 0:02:44]} Rxd2 {[%emt 0:00:04]} 59. Ke5 {[%emt 0:00:04]} Rg2 {[%emt 0:00:23]} 60. Kf6 {[%emt 0:00:06]} Rf2 {[%emt 0:01:08]} 61. g7 {[%emt 0:05:29] Black escapes into a draw.   Weighted Error Value: White=0.33/Black=0.36} 1/2-1/2

[Event "Croatian Championship 2022"]
[Site "Split"]
[Date "2022.12.03"]
[Round "5.3"]
[White "Saric, Ante"]
[Black "Bukal, Vladimir Jr."]
[Result "1-0"]
[ECO "E10"]
[WhiteElo "2504"]
[BlackElo "2411"]
[Annotator "TA"]
[PlyCount "79"]
[EventDate "2022.11.29"]
[EventType "tourn"]
[EventCountry "CRO"]
[SourceTitle "playchess.com"]
[Source "ChessBase"]
[SourceQuality "1"]
[TimeControl "40/5400+30:1800+30"]

{[%evp 9,79,16,21,17,20,0,0,0,7,7,7,12,16,0,0,-12,-18,-21,-25,-16,-15,-14,0,-12,0,0,61,41,62,44,89,95,181,0,195,0,0,0,0,0,0,0,0,0,2,3,16,6,21,0,0,0,6,6,39,44,54,0,0,0,0,0,0,5,77,76,123,99,246,270,538,531]} 1. Nf3 {[%emt 0:00:04]} e6 {[%emt 0:00:14]} 2. c4 {[%emt 0:00:07]} a6 {[%emt 0:00:11]} 3. d4 {[%emt 0:04:56]} Nf6 {[%emt 0:00:29]} 4. Bf4 {[%emt 0:01:13]} d5 {[%emt 0:09:18]} 5. e3 {[%emt 0:00:19]} c5 {[%emt 0:04:18]} 6. Nc3 {[%emt 0:02:24] E10: Blumenfeld Gambit.} dxc4 {[%emt 0:06:09]} 7. dxc5 {[%emt 0:16:42] Hoping for Qxd8+.} Qxd1+ {[%emt 0:02:46]} 8. Rxd1 {[%emt 0:00:14] The position is equal.} Bxc5 {[%emt 0:00:06]} 9. Bxc4 {[%emt 0:01:40]} b5 {[%emt 0:00:48]} 10. Be2 {[%emt 0:12:32]} Bb7 {[%emt 0:01:38] [#]} 11. Ne5 $146 {[%emt 0:01:49]} (11. a4 $5 {[%cal Ra4b5]}) ({Predecessor:} 11. O-O Nbd7 12. Rd2 Bb4 13. Rc2 h6 14. a3 Bxc3 15. Rxc3 Nd5 16. Rcc1 Nxf4 17. exf4 {½-½ (67) Duenas,A (1907)-Cirulis,I (1907) FICGS email 2016}) 11... Nbd7 {[%emt 0:05:55]} 12. Nd3 {[%emt 0:11:29]} Be7 {[%emt 0:04:38]} 13. Bf3 {[%emt 0:04:54] Prevents b4.} Bxf3 {[%emt 0:03:13]} 14. gxf3 {[%emt 0:00:03]} Rc8 {[%emt 0:02:36]} 15. Ke2 {[%emt 0:02:37]} Nc5 {[%emt 0:29:26]} 16. Rhg1 {[%emt 0:08:17]} Rg8 {[%emt 0:12:29]} 17. Be5 {[%emt 0:04:57] Threatens to win with Nxc5.} Ncd7 {[%emt 0:02:04]} (17... Nxd3 $11 18. Rxd3 g5) 18. Bd4 {[%emt 0:01:00] White is more active.} g5 {[%emt 0:00:57]} 19. Rc1 {[%emt 0:04:11]} g4 {[%emt 0:07:54]} 20. f4 {[%emt 0:02:46][%cal Oc3b5]} Rg6 {[%emt 0:01:10] [#]} (20... Rb8 $16 {was worth a try.}) 21. Ne5 $2 {[%emt 0:04:36]} (21. Nxb5 $1 $18 {[%mdl 512]} Rxc1 22. Rxc1 axb5 23. Rc8+ Bd8 24. Nb4) 21... Rh6 $2 {[%emt 0:01:53] [#]} (21... Nxe5 $11 {and Black stays safe.} 22. fxe5 Nd5) 22. Nxd7 $2 {[%emt 0:00:29]} (22. Nxg4 Nxg4 23. Rxg4 b4 $17) (22. Nd5 $1 $18 {[%mdl 512]} Rxc1 23. Rxc1 exd5 24. Rc8+ Bd8 25. Nc6) 22... Kxd7 {[%emt 0:00:44]} 23. Rcd1 {[%emt 0:08:52]} Ke8 {[%emt 0:01:28]} 24. Bxf6 {[%emt 0:02:16]} Bxf6 {[%emt 0:00:08]} 25. Rxg4 {[%emt 0:00:10] Black must now prevent Rg8+.} Ke7 {[%emt 0:00:20]} 26. Rg2 {[%emt 0:01:43]} Rh5 {[%emt 0:00:25]} 27. Rd3 {[%emt 0:00:55]} Rhc5 {[%emt 0:00:39][%cal Rf6c3]} 28. Nd1 $1 {[%emt 0:00:49]} Rc1 {[%emt 0:00:57]} 29. e4 {[%emt 0:00:37]} R1c2+ {[%emt 0:01:25]} 30. Rd2 $1 {[%emt 0:00:47]} Rxd2+ {[%emt 0:00:33]} 31. Kxd2 $11 {[%emt 0:00:01][%mdl 4096] Endgame KRB-KRN} Bd4 {[%emt 0:00:11]} 32. Rg3 {[%emt 0:00:25]} Bb6 {[%emt 0:00:50]} 33. a3 {[%emt 0:01:51]} ({Better is} 33. Ra3 $1 $14) 33... Rc4 {[%emt 0:00:12]} 34. f3 {[%emt 0:00:31]} Bc7 {[%emt 0:00:40]} 35. Rg4 {[%emt 0:00:14]} h5 {[%emt 0:00:36]} 36. Rh4 {[%emt 0:00:06]} f5 {[%emt 0:00:09]} (36... Kf6 $11) 37. Ne3 $16 {[%emt 0:00:45]} (37. Rxh5 fxe4 38. Rh7+ Kd8 $11) 37... Ra4 {[%emt 0:00:41] [#]} (37... Rd4+ $142 38. Kc3 Rd8) 38. Kd3 $1 {[%emt 0:00:16]} (38. Rxh5 $6 fxe4 39. f5 (39. Rh7+ Kd8 $11) 39... exf3 40. Rh7+ Kd6 $11) 38... Bb6 {[%emt 0:00:43] [#]} (38... fxe4+ $16 39. fxe4 Kf7) 39. Nc2 $1 $18 {[%emt 0:00:05]} (39. Rxh5 fxe4+ 40. Ke2 (40. fxe4 Rd4+ 41. Ke2 Rxe4 $11) 40... exf3+ 41. Kxf3 Bxe3 42. Rh7+ (42. Kxe3 b4 $11) 42... Kf6 43. Kxe3 b4 $11) (39. exf5 $6 Bxe3 40. Kxe3 exf5 $16) 39... e5 $2 {[%emt 0:00:32]} (39... Rc4 40. Rxh5 Bf2 41. Rh7+ (41. exf5 Rxf4 42. fxe6 Kxe6 $18) 41... Ke8) 40. b3 {[%emt 0:00:00] Weighted Error Value: White=0.18 (very precise) /Black=0.35} ({Less strong is} 40. exf5 Rxf4 41. Rxf4 (41. Rxh5 Bg1 $16) 41... exf4 $18) 1-0

[Event "Croatian Championship 2022"]
[Site "Split"]
[Date "2022.12.03"]
[Round "5.4"]
[White "Jovanovic, Zoran"]
[Black "Zelcic, Robert"]
[Result "1-0"]
[ECO "B18"]
[WhiteElo "2513"]
[BlackElo "2496"]
[Annotator "TA"]
[PlyCount "99"]
[EventDate "2022.11.29"]
[EventType "tourn"]
[EventCountry "CRO"]
[SourceTitle "playchess.com"]
[Source "ChessBase"]
[SourceQuality "1"]
[TimeControl "40/5400+30:1800+30"]

{[%evp 9,99,0,0,0,0,0,0,0,0,0,0,0,0,0,0,0,10,10,8,9,6,3,37,34,33,28,22,16,29,22,24,31,63,62,56,67,162,149,155,167,175,166,168,0,209,195,209,204,206,210,195,208,206,191,187,168,168,159,152,157,159,125,298,298,297,286,293,272,286,284,275,250,270,160,127,111,111,111,127,134,334,341,337,337,29987,29988,29988,29989,29989,80,29990,29991]} 1. e4 {[%emt 0:00:09]} c6 {[%emt 0:00:04]} 2. d4 {[%emt 0:00:12]} d5 {[%emt 0:00:04]} 3. Nd2 {[%emt 0:00:09]} dxe4 {[%emt 0:00:06]} 4. Nxe4 {[%emt 0:00:06]} Bf5 {[%emt 0:00:05]} 5. Nc5 {[%emt 0:00:30]} e5 {[%emt 0:00:13]} 6. Nxb7 {[%emt 0:01:01] B18: Classical Caro-Kann: 4...Bf5 sidelines.} Qb6 {[%emt 0:00:02]} (6... Qxd4 7. Qxd4 exd4 8. Nf3 $16) 7. Nc5 {[%emt 0:00:23]} Bxc5 {[%emt 0:00:05]} 8. dxc5 {[%emt 0:00:09] The position is equal.} Qxc5 {[%emt 0:00:02]} 9. c3 {[%emt 0:06:22]} Nf6 {[%emt 0:00:05]} 10. Bd3 {[%emt 0:00:09]} Bxd3 {[%emt 0:09:03]} 11. Qxd3 {[%emt 0:00:03]} O-O {[%emt 0:02:04] [#]} 12. Ne2 $146 {[%emt 0:03:28]} ({Predecessor:} 12. Be3 Qe7 13. Ne2 Nbd7 14. O-O Nd5 15. Ng3 Nxe3 16. fxe3 g6 17. Rad1 Nb6 18. Ne4 {½-½ (37) Maksimovic,B (2451)-Maly,A (2368) Chess.com INT 2021}) 12... Qd5 {[%emt 0:25:07]} 13. Qxd5 {[%emt 0:05:12]} cxd5 {[%emt 0:00:05]} 14. Bg5 {[%emt 0:08:33]} Ne4 {[%emt 0:05:01]} 15. Be3 {[%emt 0:04:27]} Na6 {[%emt 0:00:33]} 16. O-O-O {[%emt 0:03:54]} Nc7 {[%emt 0:00:57]} 17. Ng3 {[%emt 0:09:48]} Nxg3 {[%emt 0:06:42]} 18. hxg3 {[%emt 0:01:19]} Rfd8 {[%emt 0:00:14]} 19. Rd2 {[%emt 0:09:45]} f6 {[%emt 0:01:46]} 20. Rh4 {[%emt 0:08:02]} Rd6 {[%emt 0:05:38]} 21. Rb4 {[%emt 0:03:11]} Ne6 {[%emt 0:03:19]} 22. f4 {[%emt 0:05:47]} g5 {[%emt 0:07:43] [#]} (22... d4 $14) 23. fxe5 $1 $18 {[%emt 0:02:21]} fxe5 {[%emt 0:00:02]} 24. Rb5 {[%emt 0:00:08] White is much more active.} Nc7 {[%emt 0:03:22]} 25. Rb7 {[%emt 0:04:22]} Ne6 {[%emt 0:03:26]} 26. Rb5 $2 {[%emt 0:02:04]} ({But not} 26. Bxa7 d4 $16) (26. Rxa7 $18 Rb8 27. Kb1) 26... Rad8 {[%emt 0:00:51]} (26... Nc7 $1 $11 {and Black has nothing to worry.} 27. Rc5 Rd7) 27. Bxa7 {[%emt 0:00:26]} d4 {[%emt 0:00:56]} 28. Rxe5 {[%emt 0:03:07] aiming for Bxd4.} dxc3 {[%emt 0:00:04]} 29. Rxd6 {[%emt 0:00:02]} cxb2+ {[%emt 0:00:07]} 30. Kxb2 {[%emt 0:00:01]} Rxd6 {[%emt 0:00:04][%mdl 4096] Endgame KRB-KRN} 31. Be3 {[%emt 0:01:58] Against Rd2+} Kf7 {[%emt 0:00:29]} 32. Rb5 {[%emt 0:02:28]} ({Much less strong is} 32. Bxg5 Rb6+ 33. Ka1 Nxg5 $16) 32... Rd3 {[%emt 0:11:56]} 33. Rb3 {[%emt 0:00:25]} ({Weaker is} 33. Bxg5 Rxg3 34. Rb7+ Kg6 $11) 33... Rd5 {[%emt 0:00:06]} 34. a4 {[%emt 0:00:13][%cal Ba2a4,Ba4a5,Ba5a6][%mdl 32]} Ke7 {[%emt 0:00:37]} 35. Ra3 {[%emt 0:06:13]} Kd7 $2 {[%emt 0:05:14]} (35... Nc7 $16 {might work better.} 36. Kc2 Na6) 36. a5 {[%emt 0:00:26]} Kc8 {[%emt 0:00:41]} 37. a6 {[%emt 0:00:10] Threatens to win with a7.} Kb8 {[%emt 0:00:00]} 38. Rc3 {[%emt 0:03:58] Against Nc5. Threatening mate with a7+.} Rd8 {[%emt 0:01:30]} 39. Rc6 {[%emt 0:00:27] Against h5. Black must now prevent Rb6+.} Re8 {[%emt 0:00:21]} 40. Bb6 {[%emt 0:00:00]} h5 {[%emt 0:00:00]} 41. Rd6 {[%emt 0:06:46]} ({White should try} 41. Ka3 $18) 41... h4 $16 {[%emt 0:03:41]} 42. gxh4 {[%emt 0:00:02]} gxh4 {[%emt 0:00:05]} 43. Rd7 {[%emt 0:00:02]} Rg8 {[%emt 0:04:42]} 44. Kb3 {[%emt 0:12:57] Hoping for Kc4.} Rc8 {[%emt 0:02:50]} (44... Ng5 $16 45. Rb7+ Ka8 46. Ra7+ Kb8) 45. Kb4 $18 {[%emt 0:04:49]} Nf4 {[%emt 0:00:04]} 46. Kb5 {[%emt 0:00:24]} Nxg2 $2 {[%emt 0:00:27] [#]} (46... Ka8 $18 47. Ra7+ Kb8) 47. Bc5 $1 {[%emt 0:01:31]} Ka8 {[%emt 0:04:14]} 48. Ra7+ {[%emt 0:00:40]} Kb8 {[%emt 0:00:03]} 49. Rb7+ {[%emt 0:02:39]} Ka8 {[%emt 0:00:03]} 50. Kb6 {[%emt 0:00:10] Weighted Error Value: White=0.08 (flawless) /Black=0.41} 1-0

[Event "Croatian Championship 2022"]
[Site "Split"]
[Date "2022.12.03"]
[Round "5.5"]
[White "Stevic, Hrvoje"]
[Black "Saric, Ivan"]
[Result "0-1"]
[ECO "B11"]
[WhiteElo "2543"]
[BlackElo "2674"]
[Annotator "TA"]
[PlyCount "82"]
[EventDate "2022.11.29"]
[EventType "tourn"]
[EventCountry "CRO"]
[SourceTitle "playchess.com"]
[Source "ChessBase"]
[SourceQuality "1"]
[TimeControl "40/5400+30:1800+30"]

{[%evp 9,82,28,37,35,47,34,28,27,33,25,23,38,37,50,40,32,70,27,24,14,16,0,0,-5,0,0,0,0,0,-112,-124,-125,-125,-125,-124,-135,-125,-132,-134,-126,-35,-42,-35,-40,0,-217,-218,-254,-243,-246,-230,-279,-272,-264,-199,-197,-152,-158,-121,-145,-122,-319,-331,-326,-302,-549,-544,-1088,-1057,-1084,-848,-29989,-1109,-29973,-3004]} 1. e4 {[%emt 0:04:10]} c6 {[%emt 0:00:05]} 2. Nf3 {[%emt 0:00:49]} d5 {[%emt 0:00:04]} 3. Nc3 {[%emt 0:00:26]} dxe4 {[%emt 0:00:13]} 4. Nxe4 {[%emt 0:00:07]} Nf6 {[%emt 0:00:04]} 5. Qe2 {[%emt 0:00:20]} Bf5 {[%emt 0:02:28]} 6. Nxf6+ {[%emt 0:03:13] B11: Caro-Kann: Two Knights Variation.} gxf6 {[%emt 0:00:03]} 7. d3 {[%emt 0:00:08] The main line 7.d3 scores better than 7.d4.} Nd7 {[%emt 0:00:32]} 8. g3 {[%emt 0:01:08][%cal Bg2g3,Bg3g4][%mdl 32] White has an edge.} Bg4 $5 {[%emt 0:13:48][%mdl 4] [#] Exploring less charted territory.} 9. h3 $146 {[%emt 0:09:45]} ({Predecessor:} 9. d4 Qa5+ 10. Bd2 Qf5 11. Nh4 Bxe2 12. Nxf5 Bxf1 13. Rxf1 e6 14. Ne3 Nb6 15. c4 {½-½ (39) Puranik,A (2459)-Prohaszka,P (2596) Zalakaros 2017}) 9... Bxf3 {[%emt 0:00:28]} 10. Qxf3 {[%emt 0:00:07]} Ne5 {[%emt 0:01:03]} 11. Qe4 {[%emt 0:01:04]} e6 {[%emt 0:01:24]} 12. Bd2 {[%emt 0:06:10]} Bg7 {[%emt 0:05:13]} 13. g4 {[%emt 0:11:38]} Qb6 {[%emt 0:14:31]} 14. Bc3 {[%emt 0:06:23]} O-O-O {[%emt 0:00:22]} 15. Bg2 {[%emt 0:03:32]} (15. Be2 {simplifies} c5 16. O-O-O Nc6 17. Qe3) 15... h5 {[%emt 0:04:11]} 16. g5 {[%emt 0:23:47] [#]} fxg5 {[%emt 0:04:45][%cal Oh8g8]} 17. O-O-O {[%emt 0:04:35]} (17. Bxe5 Qa5+ 18. Bc3 Bxc3+ 19. bxc3 Qxc3+ 20. Ke2 Qxc2+ 21. Kf1 Qxd3+ 22. Qxd3 Rxd3 $17) 17... Rd5 {[%emt 0:08:01]} 18. Qe1 {[%emt 0:04:59]} Rb5 {[%emt 0:16:34][%cal Ob5b2]} 19. a4 {[%emt 0:00:42] [#]} (19. b3 $11 {remains equal.}) 19... Rxb2 $3 $17 {[%emt 0:00:33][%mdl 512]} 20. Bxb2 {[%emt 0:01:37] [#]} Nf3 {[%emt 0:00:09][%csl Gg7][%cal Rb6b2][%mdl 576]} 21. Bxg7 {[%emt 0:00:43]} (21. Bxf3 $2 {perishes.} Qxb2+ 22. Kd2 Bc3+ 23. Ke2 Bxe1 $19) 21... Nxe1 {[%emt 0:00:03] Really sharp!} 22. Rdxe1 {[%emt 0:07:44]} Rg8 $40 {[%emt 0:00:36][%mdl 128] Black wants a kill.} 23. Be5 {[%emt 0:02:26]} Qxf2 {[%emt 0:02:13]} 24. Be4 {[%emt 0:00:04]} Qc5 {[%emt 0:03:39]} ({Black should try} 24... f5 $17 25. Rhf1 Qh4) 25. Bf6 {[%emt 0:01:40]} g4 {[%emt 0:00:53]} 26. Bh7 {[%emt 0:01:51]} Re8 {[%emt 0:02:54] Hoping for ...Qf8.} 27. h4 $2 {[%emt 0:01:00]} (27. hxg4 $11 {and White is okay.} hxg4 28. Be4) 27... Qf8 $1 $19 {[%emt 0:04:32] ...Qh6+ is the strong threat.} 28. Be4 {[%emt 0:00:13]} Qh6+ $1 {[%emt 0:00:05]} 29. Bg5 {[%emt 0:00:04]} Qh8 {[%emt 0:00:09]} 30. Kd2 {[%emt 0:01:53]} f5 {[%emt 0:02:44]} 31. Bg2 {[%emt 0:00:01]} e5 {[%emt 0:00:34]} ({Wrong is} 31... Qd4 $2 32. Rhf1 $19) 32. Rhf1 {[%emt 0:00:15]} f4 {[%emt 0:00:04]} 33. Be4 {[%emt 0:00:04]} Kc7 {[%emt 0:02:41]} 34. Bg6 {[%emt 0:03:09]} Rg8 {[%emt 0:00:23]} 35. Bf7 {[%emt 0:00:28] [#] Loses the game.} (35. Be4 $17 {was called for.}) 35... Rxg5 $1 {[%emt 0:01:01][%mdl 512]} 36. hxg5 {[%emt 0:00:03]} g3 {[%emt 0:02:31] White must now prevent ...h4.} 37. Rh1 {[%emt 0:01:03]} (37. Be6) 37... h4 {[%emt 0:00:26] And now ...g2 would win.} 38. Rh3 {[%emt 0:00:41]} f3 {[%emt 0:02:53]} 39. Ke3 {[%emt 0:00:18]} Qf8 {[%emt 0:01:18]} 40. g6 {[%emt 0:00:00]} Qc5+ {[%emt 0:00:00]} (40... Qb4 $142 41. Kxf3 Qxe1 42. Kg4 g2 43. Kh5 g1=Q 44. Kh6 Qef1 45. Rh2 Qf6 46. Rg2 Qh8+ 47. Kg5 Qxg2+ 48. Kf5 Qf3+ 49. Kg5 Qhh5#) 41. Kd2 {[%emt 0:07:50]} f2 {[%emt 0:03:12] Weighted Error Value: White=0.87/Black=0.31} (41... Qb4+ $142 42. Kd1 f2 43. Rhh1 g2 44. Be6 fxe1=Q+ 45. Rxe1 Qb1+ 46. Ke2 {[#]} Qxe1+ $3 {[%mdl 512]} 47. Kxe1 g1=Q+ 48. Kd2 Qxg6 49. Bh3 Qg3 50. Be6 h3 51. Bxh3 Qxh3 52. a5 Qh2+ 53. Ke3 Qxc2 54. Ke4 Qe2+ 55. Kf5 Kd6 56. Kf6 Qxd3 57. Kf7 Qf5+ 58. Kg8 Ke6 59. a6 Qg4+ 60. Kh7 Kf7 61. axb7 Qh5#) 0-1